bitfinex/quotes_SOLUSD_20250207
["timestamp","ask_amount","ask_price","bid_price","bid_amount"]
[1738896934122,20.0,194.51,194.46,0.03]
[1738896934283,10.15491208,194.52,194.47,1.5867]
[1738896934491,10.15491208,194.53,194.47,1.5867]
[1738896935111,10.15491208,194.53,194.47,219.8867]
[1738896935504,10.15491208,194.53,194.47,225.0286]
[1738896935703,0.03,194.51,194.47,225.0286]
[1738896936014,0.03,194.51,194.48,0.12549]
[1738896936212,0.03,194.51,194.5,0.12549]
[1738896936519,0.03,194.51,194.5,219.19643263]
[1738896936685,0.03,194.51,194.5,218.42549]
[1738896937221,0.03,194.51,194.5,218.3]
[1738896940486,0.03,194.51,194.5,81.22549]
[1738896940669,0.03,194.51,194.5,87.13778423]
[1738896941496,0.03,194.51,194.5,234.49269631]
[1738896941687,0.03,194.51,194.5,233.72170208]
[1738896948096,0.03,194.51,194.5,223.56679]
[1738896952012,0.03,194.51,194.5,234.72170208]
[1738896952304,0.03,194.51,194.5,248.25904061]
[1738896952993,0.03,194.51,194.5,295.13276893]
[1738896953507,0.03,194.51,194.5,254.51312061]
[1738896954303,0.03,194.51,194.5,258.31176004]
[1738896954897,15.71150893,194.59,194.54,0.12549]
[1738896955085,15.71150893,194.59,194.54,229.35114268]
[1738896955285,15.71150893,194.59,194.54,228.58040208]
[1738896955503,15.71150893,194.59,194.55,0.7707439]
[1738896955903,15.71150893,194.59,194.54,228.45491208]
[1738896956104,15.71150893,194.59,194.54,218.3]
[1738896956289,10.15491208,194.58,194.54,218.3]
[1738896958500,10.15491208,194.57,194.54,218.3]
[1738896958712,10.15491208,194.57,194.54,81.1]
[1738896959009,10.15491208,194.56,194.54,81.1]
[1738896959189,10.15491208,194.56,194.54,137.2]
[1738896960810,10.15491208,194.58,194.54,137.2]
[1738896961381,15.74150893,194.59,194.55,0.12549]
[1738896961580,15.74150893,194.59,194.56,10.15491208]
[1738896962503,15.74150893,194.59,194.55,11.05123363]
[1738896962710,15.74150893,194.59,194.55,16.19113363]
[1738896963507,15.74150893,194.59,194.54,81.1]
[1738896963706,25.89642101,194.59,194.54,81.1]
[1738896965912,10.15491208,194.57,194.54,81.1]
[1738896968100,11.69671208,194.57,194.54,81.1]
[1738896971121,10.15491208,194.57,194.54,81.1]
[1738896971292,10.15491208,194.58,194.54,81.1]
[1738896971492,0.03,194.57,194.54,81.1]
[1738896982016,0.03,194.57,194.54,91.25491208]
[1738896982254,0.03,194.57,194.55,0.12549]
[1738896982515,0.03,194.57,194.54,235.20411208]
[1738896982729,0.03,194.57,194.54,219.909]
[1738896984028,0.03,194.57,194.54,218.3]
[1738896984819,0.03,194.57,194.56,10.28040208]
[1738896985332,0.03,194.57,194.56,228.58040208]
[1738896986044,0.03,194.57,194.56,233.72020208]
[1738896986645,0.03,194.57,194.56,223.56529]
[1738896987250,0.03,194.57,194.56,233.72020208]
[1738897001673,15.74150893,194.59,194.58,20.12549]
[1738897001842,15.74150893,194.59,194.58,249.35098385]
[1738897002044,15.74150893,194.59,194.58,248.58040208]
[1738897002369,15.74150893,194.59,194.58,263.11774061]
[1738897002743,0.03,194.59,194.58,263.11774061]
[1738897003363,0.0001,194.59,194.58,264.36872061]
[1738897003868,0.0001,194.59,194.58,275.57713639]
[1738897004556,0.0001,194.59,194.58,274.32615639]
[1738897004751,0.0001,194.59,194.58,273.32615639]
[1738897005436,0.0001,194.59,194.58,267.25694061]
[1738897006163,0.0001,194.59,194.58,268.25694061]
[1738897006458,1e-08,194.6,194.59,1.12549]
[1738897006654,1e-08,194.6,194.59,12.05088198]
[1738897006854,1e-08,194.6,194.59,17.18988198]
[1738897007049,1e-08,194.6,194.59,31.97820051]
[1738897011642,1e-08,194.6,194.59,250.27820051]
[1738897011843,1e-08,194.6,194.59,249.50772061]
[1738897015159,1e-08,194.6,194.59,248.25674061]
[1738897015363,1e-08,194.6,194.59,247.25674061]
[1738897015864,1e-08,194.6,194.59,248.25674061]
[1738897016867,1e-08,194.6,194.59,247.25674061]
[1738897017269,1e-08,194.6,194.59,249.25674061]
[1738897017767,1e-08,194.6,194.59,250.55702208]
[1738897018561,1e-08,194.63,194.62,22.25098]
[1738897018750,1e-08,194.63,194.62,264.88797259]
[1738897018950,1e-08,194.63,194.62,264.11774061]
[1738897019147,1e-08,194.63,194.62,264.36872061]
[1738897019347,0.03,194.67,194.66,21.25098]
[1738897019550,0.03,194.67,194.66,263.88791156]
[1738897019866,0.03,194.67,194.66,263.11774061]
[1738897020669,0.03,194.67,194.66,268.25484061]
[1738897021471,0.03,194.67,194.66,267.25484061]
[1738897021651,0.03,194.67,194.66,268.25484061]
[1738897022271,0.03,194.67,194.66,267.25484061]
[1738897022765,0.03,194.67,194.66,253.71750208]
[1738897024785,0.03,194.67,194.66,233.71750208]
[1738897024950,0.03,194.67,194.66,218.3]
[1738897024951,10.18491208,194.67,194.66,218.3]
[1738897025154,10.18491208,194.67,194.66,81.1]
[1738897025944,0.03,194.67,194.66,81.1]
[1738897027270,0.03,194.67,194.66,218.42549]
[1738897027573,0.03,194.67,194.66,228.58040208]
[1738897027774,0.03,194.67,194.66,233.71750208]
[1738897032090,0.0001,194.67,194.66,248.25484061]
[1738897032257,0.0001,194.67,194.66,249.50582061]
[1738897034080,0.0001,194.67,194.66,255.5753154]
[1738897042391,20.47399037,194.77,194.7,20.0]
[1738897042564,1.6123,194.84,194.77,0.12549]
[1738897042763,1.6123,194.84,194.81,10.15491208]
[1738897042968,1.6123,194.84,194.81,148.12468316]
[1738897043268,1.6123,194.84,194.81,137.2]
[1738897044980,1.6123,194.84,194.82,0.12549]
[1738897045376,1.6123,194.84,194.82,0.89524443]
[1738897045575,1.6123,194.84,194.82,0.12549]
[1738897046189,1.6123,194.84,194.81,137.2]
[1738897050298,1.6123,194.84,194.81,218.3]
[1738897053182,1.6123,194.84,194.81,223.4331]
[1738897054185,1.6123,194.84,194.82,5.25839]
[1738897055599,6.0534,194.85,194.82,5.25839]
[1738897055786,0.03,194.87,194.82,16.18303647]
[1738897056180,0.03,194.87,194.82,6.02812439]
[1738897056392,0.03,194.87,194.82,223.55839]
[1738897057102,0.03,194.87,194.82,233.71330208]
[1738897061903,0.03,194.87,194.82,247.25064061]
[1738897063903,0.03,194.87,194.84,1.0]
[1738897064087,0.03,194.9,194.87,0.12549]
[1738897064287,0.03,194.9,194.89,0.12549]
[1738897064486,0.03,194.9,194.89,228.58040208]
[1738897066417,0.03,194.9,194.89,233.71140208]
[1738897067036,0.03,194.9,194.89,248.49972061]
[1738897067342,0.03,194.91,194.9,24.06872061]
[1738897067523,0.03,194.91,194.9,24.83792893]
[1738897069216,0.03,194.91,194.9,31.26912956]
[1738897070637,0.03,194.91,194.9,249.56912956]
[1738897070933,0.03,194.91,194.9,248.79992124]
[1738897073207,0.03,194.91,194.9,250.10378892]
[1738897073830,0.03,194.91,194.9,249.85280892]
[1738897081434,0.03,194.91,194.9,236.31547039]
[1738897081633,0.03,194.91,194.9,233.71120208]
[1738897081836,0.03,194.91,194.9,234.97404365]
[1738897084628,0.03,194.91,194.9,248.51138218]
[1738897084835,0.03,194.91,194.9,249.77082271]
[1738897086629,0.03,194.91,194.9,236.23348418]
[1738897088920,0.03,194.91,194.9,249.77082271]
[1738897089322,0.03,194.91,194.9,236.23348418]
[1738897089823,0.03,194.91,194.9,233.71120208]
[1738897092138,0.03,194.91,194.9,233.77420208]
[1738897093244,10.15491208,195.01,194.91,0.25098]
[1738897093459,10.15491208,194.93,194.9,0.063]
[1738897093753,18.29339208,194.91,194.9,0.063]
[1738897094436,11.69411208,194.9,194.89,0.063]
[1738897098457,10.15491208,194.9,194.89,0.063]
[1738897098666,7.8875,194.91,194.89,0.063]
[1738897101270,7.8875,194.91,194.89,137.263]
[1738897102341,10.15491208,194.94,194.89,223.494]
[1738897103755,10.18491208,194.94,194.89,223.494]
[1738897103956,0.03,194.94,194.89,223.494]
[1738897104269,0.03,194.94,194.9,0.12549]
[1738897105042,0.03,194.94,194.9,0.89489423]
[1738897105368,0.03,194.94,194.92,0.12549]
[1738897106463,0.03,194.94,194.92,5.25559]
[1738897108648,0.03,194.94,194.89,228.51791208]
[1738897108862,0.03,194.94,194.9,5.1308]
[1738897109891,0.03,194.94,194.9,223.4308]
[1738897110764,0.03,194.94,194.91,0.12549]
[1738897111673,0.03,194.94,194.9,223.4308]
[1738897115785,0.03,194.94,194.9,223.4938]
[1738897117477,0.03,194.94,194.9,218.363]
[1738897117679,10.18491208,194.94,194.9,218.363]
[1738897118456,11.70341208,194.94,194.9,218.363]
[1738897119173,10.15491208,194.93,194.9,218.363]
[1738897119350,10.15491208,194.93,194.9,0.063]
[1738897119783,16.67421208,194.93,194.9,0.063]
[1738897120480,30.40589208,194.91,194.9,0.063]
[1738897121284,31.94499208,194.91,194.9,0.063]
[1738897129175,75.48233061,194.91,194.9,0.063]
[1738897130081,30.15491208,194.91,194.9,0.063]
[1738897139100,30.18491208,194.91,194.9,0.063]
[1738897143211,10.18491208,194.91,194.9,0.063]
[1738897143379,0.03,194.91,194.9,0.063]
[1738897144694,10.18491208,194.91,194.9,0.063]
[1738897145290,0.03,194.91,194.9,0.063]
[1738897145510,0.03,194.91,194.9,218.48849]
[1738897145805,0.03,194.94,194.9,228.64340208]
[1738897146008,0.03,194.94,194.91,10.15491208]
[1738897146213,0.03,194.94,194.9,228.64340208]
[1738897146907,0.03,194.94,194.9,218.48849]
[1738897147081,0.03,194.94,194.91,5.1305]
[1738897151106,0.03,194.94,194.91,142.3305]
[1738897153894,0.03,194.94,194.92,0.12549]
[1738897154106,0.03,194.94,194.92,5.25559]
[1738897155912,20.0,195.0,194.95,20.0]
[1738897155913,10.15491208,195.0,194.95,20.0]
[1738897156115,0.03,195.03,194.95,20.0]
[1738897156116,0.03,195.03,194.97,0.12549]
[1738897156421,0.03,195.03,194.97,10.28040208]
[1738897158290,0.03,195.03,194.98,5.1287]
[1738897160202,0.03,195.03,194.98,223.4287]
[1738897168825,10.18491208,195.03,194.98,223.4287]
[1738897169211,0.03,195.03,194.98,223.4287]
[1738897174516,0.03,195.03,194.99,10.15491208]
[1738897174841,0.03,195.03,194.99,228.45491208]
[1738897175643,0.03,195.03,195.0,5.1282]
[1738897176434,0.03,195.03,195.01,0.12549]
[1738897177134,0.03,195.03,195.01,0.89447834]
[1738897177454,0.03,195.03,195.02,5.25309]
[1738897179982,0.03,195.03,195.02,233.70800208]
[1738897180119,10.18491208,195.11,195.03,0.12549]
[1738897180320,0.03,195.11,195.06,0.12549]
[1738897180539,0.03,195.11,195.06,10.28040208]
[1738897181149,0.03,195.11,195.06,0.12549]
[1738897181362,0.03,195.11,195.06,5.25189]
[1738897182852,0.03,195.11,195.06,142.45189]
[1738897184163,0.03,195.11,195.08,0.12549]
[1738897184369,0.03,195.11,195.08,147.48040208]
[1738897186160,0.03,195.11,195.09,5.1258]
[1738897187431,0.03,195.11,195.1,0.12549]
[1738897188738,0.03,195.11,195.1,142.45099]
[1738897188948,0.03,195.11,195.1,152.60590208]
[1738897191455,0.03,195.11,195.1,233.83139208]
[1738897192070,0.03,195.14,195.13,20.0]
[1738897192239,0.03,195.14,195.13,167.48040208]
[1738897192573,1.5164,195.26,195.14,0.12549]
[1738897192742,10.15491208,195.24,195.18,0.12549]
[1738897192942,10.15491208,195.24,195.18,137.32549]
[1738897193667,10.15491208,195.24,195.18,142.44879]
[1738897194163,10.15491208,195.23,195.18,142.44879]
[1738897195148,10.15491208,195.23,195.18,137.2]
[1738897195358,10.15491208,195.21,195.16,137.2]
[1738897199172,1.5367,195.22,195.14,223.4243]
[1738897199173,10.15491208,195.19,195.14,223.4243]
[1738897199352,10.15491208,195.18,195.13,137.2]
[1738897199550,10.15491208,195.17,195.13,137.2]
[1738897200676,10.15491208,195.17,195.11,5.1251]
[1738897201558,10.15491208,195.19,195.12,10.15491208]
[1738897201876,0.03,195.21,195.15,10.15491208]
[1738897202473,0.03,195.21,195.14,30.28040208]
[1738897202677,0.03,195.21,195.14,167.48040208]
[1738897202881,0.03,195.21,195.15,5.1242]
[1738897203376,0.03,195.21,195.15,15.27911208]
[1738897204995,10.18491208,195.21,195.15,5.1242]
[1738897206881,10.15491208,195.18,195.14,137.2]
[1738897207260,10.15491208,195.16,195.12,5.125]
[1738897207579,10.15491208,195.15,195.11,137.2]
[1738897207751,10.15491208,195.14,195.11,137.2]
[1738897208367,10.15491208,195.15,195.11,137.2]
[1738897208874,10.15491208,195.14,195.09,137.2]
[1738897209081,10.15491208,195.15,195.1,5.1255]
[1738897209264,10.15491208,195.16,195.1,5.1255]
[1738897210573,10.15491208,195.17,195.1,5.1255]
[1738897210744,13.69282853,195.21,195.1,5.1255]
[1738897210745,10.18491208,195.21,195.14,10.15491208]
[1738897210944,0.03,195.21,195.15,0.12549]
[1738897211798,10.18491208,195.21,195.14,147.35491208]
[1738897211999,10.18491208,195.17,195.14,137.2]
[1738897212171,10.18491208,195.17,195.11,0.063]
[1738897212369,0.03,195.17,195.11,0.063]
[1738897212973,0.03,195.17,195.11,10.21791208]
[1738897213284,0.03,195.17,195.11,0.063]
[1738897213474,0.03,195.17,195.11,10.21791208]
[1738897213790,0.03,195.17,195.11,15.34311208]
[1738897213998,0.03,195.17,195.11,5.1882]
[1738897214690,0.03,195.17,195.11,15.34311208]
[1738897215692,0.03,195.17,195.13,10.15491208]
[1738897215890,0.03,195.17,195.15,10.15491208]
[1738897216499,0.03,195.17,195.13,137.2]
[1738897218288,10.18491208,195.17,195.11,218.363]
[1738897219382,11.72201208,195.17,195.11,218.363]
[1738897220205,10.15491208,195.13,195.11,0.063]
[1738897220494,10.15491208,195.12,195.11,0.063]
[1738897221494,11.69241208,195.12,195.11,0.063]
[1738897221792,25.22975061,195.12,195.11,0.063]
[1738897223892,10.15491208,195.12,195.11,0.063]
[1738897224091,6.0566,195.14,195.11,0.063]
[1738897224296,10.18491208,195.17,195.11,0.063]
[1738897224688,10.15491208,195.16,195.11,0.063]
[1738897225010,0.03,195.17,195.11,0.063]
[1738897225011,10.15491208,195.15,195.11,0.063]
[1738897225510,10.15491208,195.12,195.11,0.063]
[1738897226180,0.25098,195.15,195.11,0.063]
[1738897226181,30.15491208,195.13,195.11,0.063]
[1738897226587,15.78631854,195.12,195.11,0.063]
[1738897227804,17.32381854,195.12,195.11,0.063]
[1738897228806,30.86115707,195.12,195.11,0.063]
[1738897230095,17.32381854,195.12,195.11,0.063]
[1738897230609,15.78631854,195.12,195.11,0.063]
[1738897231816,17.32381854,195.12,195.11,0.063]
[1738897232877,31.11213707,195.12,195.11,0.063]
[1738897233085,69.81583707,195.12,195.11,0.063]
[1738897235111,0.37647,195.08,195.03,137.263]
[1738897235413,15.78631854,195.04,195.03,0.063]
[1738897236493,17.32441854,195.04,195.03,0.063]
[1738897237003,15.78631854,195.16,195.07,0.12549]
[1738897237204,7.95448815,195.18,195.12,15.78631854]
[1738897237532,7.95448815,195.18,195.15,0.12549]
[1738897237691,7.95448815,195.18,195.14,15.78631854]
[1738897238324,7.95448815,195.18,195.14,20.91081854]
[1738897239009,7.95448815,195.18,195.14,5.1245]
[1738897239405,7.95448815,195.18,195.15,0.12549]
[1738897239595,0.03,195.21,195.16,15.91180854]
[1738897239802,0.03,195.21,195.16,153.11180854]
[1738897240395,0.03,195.21,195.16,158.23580854]
[1738897242891,0.03,195.21,195.16,158.36129854]
[1738897244107,0.03,195.21,195.16,158.23580854]
[1738897244816,0.03,195.21,195.16,159.49978902]
[1738897245199,0.03,195.21,195.16,159.62527902]
[1738897245399,0.03,195.21,195.2,0.12549]
[1738897245600,0.03,195.21,195.2,137.32549]
[1738897245990,0.03,195.21,195.2,153.11180854]
[1738897247131,15.78631854,195.3,195.2,154.4160538]
[1738897247420,6.3348,195.32,195.26,15.91180854]
[1738897247604,15.78631854,195.33,195.27,0.12549]
[1738897247802,15.78631854,195.33,195.27,137.32549]
[1738897248314,15.78631854,195.32,195.27,137.32549]
[1738897248712,15.78631854,195.29,195.27,137.2]
[1738897248931,15.78631854,195.28,195.27,137.2]
[1738897249116,15.78631854,195.29,195.23,0.12549]
[1738897249434,15.78631854,195.31,195.25,0.12549]
[1738897249611,15.78631854,195.32,195.25,15.91180854]
[1738897249812,15.78631854,195.31,195.25,0.12549]
[1738897250415,15.78631854,195.31,195.25,5.24699]
[1738897250832,17.32231854,195.31,195.25,0.12549]
[1738897251036,15.78631854,195.31,195.25,0.12549]
[1738897251336,15.78631854,195.32,195.25,15.91180854]
[1738897251833,15.78631854,195.32,195.25,21.03330854]
[1738897252621,15.78631854,195.33,195.26,15.78631854]
[1738897253520,15.78631854,195.33,195.26,152.98631854]
[1738897253724,17.32201854,195.34,195.26,158.10741854]
[1738897254148,22.01231853,195.37,195.31,15.78631854]
[1738897254149,0.03,195.37,195.31,15.78631854]
[1738897254316,0.03,195.37,195.33,15.78631854]
[1738897255341,0.03,195.37,195.33,20.90571854]
[1738897255841,0.03,195.37,195.34,0.12549]
[1738897256012,0.03,195.37,195.34,137.32549]
[1738897256210,14.53535115,195.41,195.34,153.11180854]
[1738897256625,14.53535115,195.41,195.34,137.32549]
[1738897256936,14.53535115,195.41,195.34,153.11180854]
[1738897257131,15.78631854,195.42,195.36,0.12549]
[1738897257350,15.78631854,195.44,195.37,15.78631854]
[1738897257730,15.78631854,195.44,195.38,0.12549]
[1738897258243,15.78631854,195.43,195.38,0.12549]
[1738897258440,15.78631854,195.43,195.37,137.2]
[1738897259152,1.5349,195.45,195.37,137.2]
[1738897259153,15.78631854,195.42,195.37,137.2]
[1738897259653,15.78631854,195.43,195.37,137.2]
[1738897260077,15.78631854,195.44,195.38,0.12549]
[1738897260847,1.5349,195.45,195.38,234.21180854]
[1738897260848,15.78631854,195.45,195.38,234.21180854]
[1738897261151,1.0,195.5,195.44,21.02840854]
[1738897261456,1.0,195.5,195.46,15.91180854]
[1738897262247,1.0,195.5,195.46,16.67904461]
[1738897262560,1.0,195.5,195.48,0.12549]
[1738897262934,1.0,195.5,195.48,15.91180854]
[1738897263240,1.0,195.5,195.48,0.12549]
[1738897263560,1.0,195.5,195.49,15.91180854]
[1738897265760,0.03,195.53,195.49,21.02700854]
[1738897266066,0.03,195.53,195.52,15.78631854]
[1738897266266,30.0,195.66,195.52,15.78631854]
[1738897266267,17.31971854,195.64,195.52,16.5532764]
[1738897266448,17.31971854,195.64,195.58,0.12549]
[1738897266836,15.78631854,195.64,195.58,0.12549]
[1738897267038,15.78631854,195.62,195.55,15.78631854]
[1738897267245,15.78631854,195.62,195.52,0.76695786]
[1738897267246,15.78631854,195.56,195.49,17.32611854]
[1738897267445,15.78631854,195.55,195.49,1.5398]
[1738897267969,15.78631854,195.54,195.47,15.78631854]
[1738897268164,15.78631854,195.53,195.46,15.78631854]
[1738897268467,15.78631854,195.47,195.4,152.98631854]
[1738897268639,15.78631854,195.46,195.4,137.2]
[1738897269046,1.12549,195.5,195.4,137.2]
[1738897269047,15.78631854,195.45,195.4,137.2]
[1738897269245,15.78631854,195.44,195.37,175.75400267]
[1738897269863,15.78631854,195.41,195.37,22.76768413]
[1738897270078,1.535,195.43,195.33,15.78631854]
[1738897270079,15.78631854,195.4,195.33,152.98631854]
[1738897270239,15.78631854,195.38,195.31,137.2]
[1738897270664,25.19169375,195.38,195.31,137.2]
[1738897270869,25.19169375,195.38,195.32,0.12549]
[1738897271176,25.19169375,195.42,195.35,0.12549]
[1738897271470,25.19169375,195.42,195.34,25.19169375]
[1738897271471,25.19169375,195.43,195.36,25.31718375]
[1738897271853,25.19169375,195.43,195.36,0.12549]
[1738897271854,26.72679375,195.43,195.36,0.12549]
[1738897272543,25.19169375,195.43,195.37,0.12549]
[1738897272776,26.72679375,195.43,195.37,0.12549]
[1738897273150,26.72679375,195.43,195.36,137.2]
[1738897273354,25.19169375,195.42,195.36,137.2]
[1738897273656,25.19169375,195.4,195.36,137.2]
[1738897273852,1.5352,195.41,195.36,137.2]
[1738897274061,26.72679375,195.43,195.36,162.39169375]
[1738897274369,25.19169375,195.42,195.36,137.263]
[1738897275173,25.19169375,195.41,195.36,0.063]
[1738897277168,1.5354,195.38,195.36,0.063]
[1738897277368,38.98001228,195.37,195.36,0.063]
[1738897277576,39.98001228,195.37,195.36,0.0001]
[1738897278154,38.98001228,195.37,195.36,0.0001]
[1738897278765,39.98001228,195.37,195.36,0.0001]
[1738897279754,41.07763682,195.37,195.36,0.0001]
[1738897280057,13.41184853,195.31,195.26,137.2]
[1738897280256,25.19169375,195.3,195.22,162.39169375]
[1738897281173,26.72759375,195.32,195.25,25.19169375]
[1738897281479,26.72759375,195.32,195.24,25.19169375]
[1738897282183,1.5357,195.35,195.28,25.19169375]
[1738897282476,26.72739375,195.35,195.27,25.31718375]
[1738897282648,25.19169375,195.34,195.27,162.51718375]
[1738897283047,26.72759375,195.32,195.27,137.2]
[1738897283250,25.19169375,195.31,195.27,137.2]
[1738897283471,25.19169375,195.31,195.25,218.3]
[1738897284258,25.19169375,195.29,195.25,218.3]
[1738897285065,25.19169375,195.27,195.25,218.3]
[1738897285261,25.19169375,195.27,195.21,162.39169375]
[1738897285583,25.19169375,195.27,195.21,137.2]
[1738897285770,25.19169375,195.25,195.21,137.2]
[1738897285972,6.3765,195.29,195.18,22.71334313]
[1738897285973,25.19169375,195.23,195.18,22.71334313]
[1738897286175,25.19169375,195.2,195.16,0.063]
[1738897286372,25.19169375,195.18,195.16,0.063]
[1738897286967,25.19169375,195.17,195.16,0.063]
[1738897287365,26.72879375,195.18,195.16,0.063]
[1738897287578,38.72903228,195.17,195.16,0.063]
[1738897287886,38.72903228,195.17,195.16,0.0001]
[1738897287887,39.98001228,195.17,195.16,0.0001]
[1738897291690,38.98001228,195.17,195.16,0.0001]
[1738897292575,25.19169375,195.17,195.16,0.0001]
[1738897292782,25.19169375,195.2,195.16,0.0001]
[1738897292977,25.19169375,195.22,195.16,0.0001]
[1738897293889,25.19169375,195.21,195.16,0.0001]
[1738897294278,25.19169375,195.19,195.16,0.0001]
[1738897294692,25.19169375,195.18,195.16,0.0001]
[1738897294900,25.31718375,195.17,195.16,0.0001]
[1738897295193,13.41184853,195.2,195.16,0.0001]
[1738897295774,26.72839375,195.22,195.16,0.0001]
[1738897296183,1.5367,195.22,195.16,0.0001]
[1738897296569,25.19169375,195.21,195.16,0.0001]
[1738897298568,15.77380942,195.2,195.16,0.0001]
[1738897299870,0.0967715,195.17,195.16,0.0001]
[1738897301085,1.6338715,195.17,195.16,0.0001]
[1738897303301,31.19599945,195.17,195.16,0.0001]
[1738897303487,62.19599945,195.17,195.16,0.0001]
[1738897303916,32.19599945,195.17,195.16,0.0001]
[1738897304204,15.87058092,195.17,195.16,0.0001]
[1738897304389,17.40768092,195.17,195.16,0.0001]
[1738897304702,31.19599945,195.17,195.16,0.0001]
[1738897305480,62.19599945,195.17,195.16,0.0001]
[1738897307005,31.19599945,195.17,195.16,0.0001]
[1738897307209,30.94501945,195.17,195.16,0.0001]
[1738897307401,17.40768092,195.17,195.16,0.0001]
[1738897310211,15.87058092,195.17,195.16,0.0001]
[1738897311412,0.0967715,195.17,195.16,0.0001]
[1738897314806,0.0967715,195.17,195.16,137.2001]
[1738897315007,0.0967715,195.17,195.16,153.09939942]
[1738897315801,0.0967715,195.17,195.16,239.32339942]
[1738897317509,0.0967715,195.17,195.16,240.59449673]
[1738897318198,0.0967715,195.17,195.16,241.59449673]
[1738897318396,0.0967715,195.17,195.16,241.71998673]
[1738897318599,7.15e-05,195.17,195.16,255.38281526]
[1738897319804,0.09269663,195.2,195.16,255.38281526]
[1738897319805,0.10864654,195.21,195.2,0.12549]
[1738897319986,0.10864654,195.21,195.2,153.8674311]
[1738897320190,0.10864654,195.21,195.2,158.22219942]
[1738897320803,0.10864654,195.21,195.2,239.32219942]
[1738897321313,15.77380942,195.33,195.24,0.12549]
[1738897321518,15.77380942,195.35,195.28,15.89929942]
[1738897321691,78.20940942,195.36,195.29,15.77380942]
[1738897321892,15.77380942,195.35,195.28,153.09929942]
[1738897322517,15.77380942,195.31,195.28,137.2]
[1738897322722,15.77380942,195.31,195.25,0.12549]
[1738897323202,15.77380942,195.32,195.25,0.12549]
[1738897323408,15.77380942,195.32,195.25,15.89929942]
[1738897323715,15.77380942,195.31,195.24,218.3]
[1738897324119,15.77380942,195.31,195.23,158.22139942]
[1738897324798,15.77380942,195.31,195.23,158.09590942]
[1738897325003,1.5359,195.32,195.2,152.97380942]
[1738897325004,15.77380942,195.27,195.2,152.97380942]
[1738897325319,15.77380942,195.27,195.21,0.12549]
[1738897325697,15.77380942,195.28,195.21,5.24809]
[1738897325900,1.5361,195.3,195.23,15.77380942]
[1738897326100,15.80380942,195.31,195.23,15.77380942]
[1738897326300,15.77380942,195.3,195.23,137.2]
[1738897327321,15.77380942,195.26,195.21,137.2]
[1738897327525,15.77380942,195.26,195.2,137.263]
[1738897327699,15.77380942,195.24,195.2,137.263]
[1738897328028,15.77380942,195.22,195.2,0.063]
[1738897328230,15.77380942,195.23,195.2,0.063]
[1738897328525,15.77380942,195.24,195.2,0.063]
[1738897328698,15.77380942,195.23,195.2,0.063]
[1738897329312,15.77380942,195.22,195.2,0.063]
[1738897329617,0.25098,195.24,195.2,0.063]
[1738897329618,15.77380942,195.21,195.2,0.063]
[1738897329999,29.31114795,195.22,195.2,0.063]
[1738897331020,15.77380942,195.24,195.2,0.063]
[1738897331205,15.77380942,195.26,195.2,0.063]
[1738897331392,13.53733853,195.25,195.2,0.063]
[1738897331594,15.77380942,195.26,195.2,0.063]
[1738897332500,15.89929942,195.27,195.2,0.063]
[1738897332696,15.77380942,195.23,195.2,0.063]
[1738897333023,17.31040942,195.23,195.2,0.063]
[1738897333528,1.5366,195.23,195.2,0.063]
[1738897333825,29.31114795,195.23,195.2,0.063]
[1738897334022,15.77380942,195.22,195.2,0.063]
[1738897334809,15.77380942,195.21,195.2,0.063]
[1738897335153,17.31060942,195.21,195.2,0.063]
[1738897338325,15.77380942,195.21,195.2,0.063]
[1738897338948,30.84794795,195.21,195.2,0.063]
[1738897339126,31.09892795,195.21,195.2,0.063]
[1738897339949,31.20694575,195.21,195.2,0.063]